[Event "Late-Titled-Tuesday-Blitz-June-04-2024"]
[Site "Chess.com"]
[Date "2024.06.04"]
[Round "7"]
[White "Squirlolz"]
[Black "talaicito"]
[Result "1-0"]
[WhiteElo "2511"]
[BlackElo "2205"]
[TimeControl "180+1"]
[EndTime "15:15:26 PDT"]
[Termination "Squirlolz won on time"]

1. h4 {[%clk 0:03:00.9]} 1... e5 {[%clk 0:02:57.5]} 2. c4 {[%clk 0:03:00.9]}
2... f5 {[%clk 0:02:57.5]} 3. Nc3 {[%clk 0:03:00.5]} 3... Nf6 {[%clk 0:02:58]}
4. d4 {[%clk 0:02:59.8]} 4... e4 {[%clk 0:02:55.8]} 5. Bg5 {[%clk 0:02:59.7]}
5... Bb4 {[%clk 0:02:54.8]} 6. e3 {[%clk 0:02:59.6]} 6... O-O {[%clk 0:02:46.5]}
7. Nh3 {[%clk 0:02:59.6]} 7... d6 {[%clk 0:02:38.2]} 8. Nf4 {[%clk 0:02:59.4]}
8... a5 {[%clk 0:02:31]} 9. h5 {[%clk 0:02:59.1]} 9... h6 {[%clk 0:02:24.5]} 10.
Bh4 {[%clk 0:02:57.9]} 10... Qe8 {[%clk 0:02:20.3]} 11. Ng6 {[%clk 0:02:53.7]}
11... Rf7 {[%clk 0:02:17.9]} 12. Rc1 {[%clk 0:02:53]} 12... c6 {[%clk 0:02:16]}
13. a3 {[%clk 0:02:48.4]} 13... Bxc3+ {[%clk 0:02:15]} 14. Rxc3 {[%clk
0:02:49.3]} 14... Na6 {[%clk 0:02:14]} 15. Be2 {[%clk 0:02:48.6]} 15... Nc7
{[%clk 0:02:11.1]} 16. O-O {[%clk 0:02:47.4]} 16... d5 {[%clk 0:02:04.8]} 17.
Ne5 {[%clk 0:02:46.7]} 17... Rf8 {[%clk 0:02:00.3]} 18. f4 {[%clk 0:02:46.5]}
18... Be6 {[%clk 0:01:37.4]} 19. Ng6 {[%clk 0:02:40.2]} 19... Rf7 {[%clk
0:01:36.1]} 20. Ne5 {[%clk 0:02:40.7]} 20... Rf8 {[%clk 0:01:36.3]} 21. c5
{[%clk 0:02:38.2]} 21... Bf7 {[%clk 0:01:23.9]} 22. g4 {[%clk 0:02:32.7]} 22...
fxg4 {[%clk 0:00:54.7]} 23. Bxf6 {[%clk 0:02:30.8]} 23... gxf6 {[%clk
0:00:54.1]} 24. Nxg4 {[%clk 0:02:31.3]} 24... Kg7 {[%clk 0:00:39.9]} 25. Qe1
{[%clk 0:02:24]} 25... Bxh5 {[%clk 0:00:38]} 26. Qh4 {[%clk 0:02:23.1]} 26...
Bxg4 {[%clk 0:00:36.6]} 27. Bxg4 {[%clk 0:02:23.6]} 27... f5 {[%clk 0:00:20.4]}
28. Bh5 {[%clk 0:02:22.4]} 28... Qd7 {[%clk 0:00:17.3]} 29. Rc2 {[%clk
0:02:21.5]} 29... Kh7 {[%clk 0:00:15.3]} 30. Rg2 {[%clk 0:02:20.2]} 30... Rg8
{[%clk 0:00:15.4]} 31. Rf2 {[%clk 0:02:18.4]} 31... Rxg2+ {[%clk 0:00:15.6]} 32.
Rxg2 {[%clk 0:02:19.3]} 32... Rg8 {[%clk 0:00:15.6]} 33. Rxg8 {[%clk 0:02:14.7]}
33... Kxg8 {[%clk 0:00:15.9]} 34. Bg6 {[%clk 0:02:15.6]} 34... Qg7 {[%clk
0:00:15.2]} 35. Qd8+ {[%clk 0:02:10.5]} 35... Qf8 {[%clk 0:00:09.5]} 36. Qxc7
{[%clk 0:02:10.3]} 36... Qf6 {[%clk 0:00:08.5]} 37. Qh7+ {[%clk 0:02:07.1]}
37... Kf8 {[%clk 0:00:08]} 38. Bxf5 {[%clk 0:02:07.6]} 38... Qh4 {[%clk
0:00:07.4]} 39. Qh8+ {[%clk 0:02:03.5]} 39... Kf7 {[%clk 0:00:06.9]} 40. Qh7+
{[%clk 0:02:00.7]} 40... Kf8 {[%clk 0:00:07]} 41. Kg2 {[%clk 0:01:58.3]} 41...
Qh5 {[%clk 0:00:01.8]} 42. Qg6 {[%clk 0:01:25.6]} 42... Qf3+ {[%clk 0:00:01.2]}
43. Kh2 {[%clk 0:01:24.6]} 43... Qf2+ {[%clk 0:00:01.6]} 44. Kh1 {[%clk
0:01:21.7]} 44... Qf3+ {[%clk 0:00:01.2]} 45. Qg2 {[%clk 0:01:21.2]} 45... Qxe3
{[%clk 0:00:01]} 46. Qf1 {[%clk 0:00:52.3]} 1-0

[Event "Late-Titled-Tuesday-Blitz-June-04-2024"]
[Site "Chess.com"]
[Date "2024.06.04"]
[Round "7"]
[White "norwaytoadog"]
[Black "howitzer14"]
[Result "0-1"]
[WhiteElo "2333"]
[BlackElo "3022"]
[TimeControl "180+1"]
[EndTime "15:15:31 PDT"]
[Termination "howitzer14 won on time"]

1. e4 {[%clk 0:02:59.9]} 1... c5 {[%clk 0:02:51.2]} 2. Nf3 {[%clk 0:02:59.9]}
2... e6 {[%clk 0:02:49.2]} 3. d4 {[%clk 0:02:59.9]} 3... cxd4 {[%clk 0:02:49.8]}
4. Nxd4 {[%clk 0:03:00.5]} 4... a6 {[%clk 0:02:50.5]} 5. c4 {[%clk 0:03:00.7]}
5... Nf6 {[%clk 0:02:47.8]} 6. Nc3 {[%clk 0:03:01.2]} 6... Qc7 {[%clk
0:02:46.7]} 7. Be2 {[%clk 0:03:01.6]} 7... b6 {[%clk 0:02:46.5]} 8. Be3 {[%clk
0:03:01.7]} 8... Bb7 {[%clk 0:02:47]} 9. f3 {[%clk 0:03:02.3]} 9... d6 {[%clk
0:02:37.8]} 10. Rc1 {[%clk 0:03:01.8]} 10... Nbd7 {[%clk 0:02:38.4]} 11. O-O
{[%clk 0:03:01.4]} 11... Be7 {[%clk 0:02:39]} 12. Qe1 {[%clk 0:02:56.6]} 12...
O-O {[%clk 0:02:35.3]} 13. g4 {[%clk 0:02:56.3]} 13... Rac8 {[%clk 0:02:32.2]}
14. Qg3 {[%clk 0:02:54]} 14... Qb8 {[%clk 0:02:11.6]} 15. h4 {[%clk 0:02:39.6]}
15... Bd8 {[%clk 0:01:38.7]} 16. g5 {[%clk 0:02:35.5]} 16... Nh5 {[%clk
0:01:25.8]} 17. Qg4 {[%clk 0:02:16.9]} 17... g6 {[%clk 0:01:25.1]} 18. f4 {[%clk
0:02:04.9]} 18... Qa8 {[%clk 0:01:10.6]} 19. Nxe6 {[%clk 0:01:56.8]} 19... fxe6
{[%clk 0:01:06.1]} 20. Qxe6+ {[%clk 0:01:56.7]} 20... Rf7 {[%clk 0:01:06.8]} 21.
Bxh5 {[%clk 0:01:38.3]} 21... gxh5 {[%clk 0:01:07.7]} 22. Nd5 {[%clk 0:01:37.1]}
22... Nf8 {[%clk 0:01:01.9]} 23. Qh6 {[%clk 0:01:28.6]} 23... Bxd5 {[%clk
0:00:43.6]} 24. cxd5 {[%clk 0:01:14.2]} 24... Rxc1 {[%clk 0:00:32.3]} 25. Rxc1
{[%clk 0:01:15.1]} 25... Bc7 {[%clk 0:00:32.1]} 26. Rc6 {[%clk 0:01:07.2]} 26...
Qe8 {[%clk 0:00:29.7]} 27. Rc4 {[%clk 0:00:47.1]} 27... b5 {[%clk 0:00:24.1]}
28. Rb4 {[%clk 0:00:13.5]} 28... a5 {[%clk 0:00:23]} 29. Rb3 {[%clk 0:00:14]}
29... Qxe4 {[%clk 0:00:23]} 30. Qxh5 {[%clk 0:00:11.4]} 30... a4 {[%clk
0:00:23.2]} 31. Rc3 {[%clk 0:00:10.5]} 31... b4 {[%clk 0:00:23.7]} 0-1

[Event "Late-Titled-Tuesday-Blitz-June-04-2024"]
[Site "Chess.com"]
[Date "2024.06.04"]
[Round "7"]
[White "Bryanl106"]
[Black "ImportedItalianMaple"]
[Result "0-1"]
[WhiteElo "2715"]
[BlackElo "2574"]
[TimeControl "180+1"]
[EndTime "15:15:32 PDT"]
[Termination "ImportedItalianMaple won by resignation"]

1. e4 {[%clk 0:02:59.4]} 1... g6 {[%clk 0:03:00.2]} 2. d4 {[%clk 0:02:59.3]}
2... Bg7 {[%clk 0:03:00.7]} 3. Nf3 {[%clk 0:02:58.9]} 3... d6 {[%clk 0:03:00.1]}
4. Bc4 {[%clk 0:02:59.1]} 4... Nc6 {[%clk 0:02:56.5]} 5. c3 {[%clk 0:02:56.4]}
5... e5 {[%clk 0:02:56.6]} 6. dxe5 {[%clk 0:02:53]} 6... Nxe5 {[%clk 0:02:56.2]}
7. Nxe5 {[%clk 0:02:53]} 7... Bxe5 {[%clk 0:02:56.1]} 8. O-O {[%clk 0:02:51.4]}
8... Ne7 {[%clk 0:02:55.4]} 9. Bh6 {[%clk 0:02:50.2]} 9... Be6 {[%clk
0:02:43.6]} 10. Bxe6 {[%clk 0:02:48.6]} 10... fxe6 {[%clk 0:02:44.5]} 11. Qb3
{[%clk 0:02:48.6]} 11... Kd7 {[%clk 0:02:33.9]} 12. f4 {[%clk 0:02:40]} 12...
Bf6 {[%clk 0:02:31.6]} 13. e5 {[%clk 0:02:37.7]} 13... dxe5 {[%clk 0:02:29]} 14.
Rd1+ {[%clk 0:02:36.7]} 14... Nd5 {[%clk 0:02:29.4]} 15. c4 {[%clk 0:02:36.4]}
15... c6 {[%clk 0:02:30]} 16. cxd5 {[%clk 0:02:36.4]} 16... cxd5 {[%clk
0:02:27.5]} 17. Nc3 {[%clk 0:02:35.5]} 17... Qb6+ {[%clk 0:02:24.7]} 18. Qxb6
{[%clk 0:02:21.9]} 18... axb6 {[%clk 0:02:25.6]} 19. fxe5 {[%clk 0:02:22.7]}
19... Bxe5 {[%clk 0:02:25.7]} 20. Be3 {[%clk 0:02:23]} 20... Rhc8 {[%clk
0:02:24.4]} 21. Bxb6 {[%clk 0:02:15.7]} 21... Bxc3 {[%clk 0:02:21.7]} 22. bxc3
{[%clk 0:02:16.6]} 22... Rxc3 {[%clk 0:02:22]} 23. a4 {[%clk 0:02:16.3]} 23...
Kc6 {[%clk 0:02:17.9]} 24. a5 {[%clk 0:02:13.1]} 24... e5 {[%clk 0:02:16.6]} 25.
Rf1 {[%clk 0:02:07.3]} 25... d4 {[%clk 0:02:13.1]} 26. Rae1 {[%clk 0:01:58.3]}
26... Re8 {[%clk 0:02:07.7]} 27. Rf6+ {[%clk 0:01:56.5]} 27... Kd5 {[%clk
0:02:05]} 28. Rf7 {[%clk 0:01:57]} 28... d3 {[%clk 0:02:03.3]} 29. Rd7+ {[%clk
0:01:54.8]} 29... Kc4 {[%clk 0:01:57.3]} 30. Re4+ {[%clk 0:01:43]} 30... Kb3
{[%clk 0:01:56.4]} 31. Be3 {[%clk 0:01:42.7]} 31... Kc2 {[%clk 0:01:45.4]} 32.
h4 {[%clk 0:01:34.7]} 32... Re6 {[%clk 0:01:29.9]} 33. Kh2 {[%clk 0:01:33.7]}
33... h5 {[%clk 0:01:29.8]} 34. Rb4 {[%clk 0:01:19.2]} 34... e4 {[%clk
0:01:11.6]} 35. Rdxb7 {[%clk 0:01:17.6]} 35... Kd1 {[%clk 0:01:09.8]} 36. Rb2
{[%clk 0:01:16]} 36... Rc2 {[%clk 0:01:08.1]} 37. Kg3 {[%clk 0:01:03.5]} 37...
Ke2 {[%clk 0:00:54.8]} 38. Bg5 {[%clk 0:00:51.9]} 38... e3 {[%clk 0:00:51.5]}
39. Bf4 {[%clk 0:00:15.8]} 39... Rxb2 {[%clk 0:00:48.8]} 40. Rxb2+ {[%clk
0:00:16.7]} 40... d2 {[%clk 0:00:49.2]} 41. Ra2 {[%clk 0:00:15.5]} 41... Ke1
{[%clk 0:00:47.2]} 42. Bxe3 {[%clk 0:00:03.1]} 42... Rxe3+ {[%clk 0:00:47.6]}
43. Kf4 {[%clk 0:00:03]} 43... Re8 {[%clk 0:00:46.2]} 44. Rxd2 {[%clk
0:00:02.8]} 44... Kxd2 {[%clk 0:00:46.4]} 45. Kg5 {[%clk 0:00:03.7]} 45... Re6
{[%clk 0:00:46.7]} 46. g4 {[%clk 0:00:03.3]} 46... hxg4 {[%clk 0:00:46.7]} 47.
Kxg4 {[%clk 0:00:04.2]} 47... Ra6 {[%clk 0:00:46.9]} 48. Kg5 {[%clk 0:00:05.1]}
48... Ke3 {[%clk 0:00:46.4]} 0-1

[Event "Late-Titled-Tuesday-Blitz-June-04-2024"]
[Site "Chess.com"]
[Date "2024.06.04"]
[Round "7"]
[White "Chessdude1987"]
[Black "Cuchulin"]
[Result "0-1"]
[WhiteElo "2385"]
[BlackElo "2283"]
[TimeControl "180+1"]
[EndTime "15:15:33 PDT"]
[Termination "Cuchulin won on time"]

1. e4 {[%clk 0:03:00.9]} 1... c5 {[%clk 0:02:59.8]} 2. Nf3 {[%clk 0:03:00.8]}
2... Nc6 {[%clk 0:02:59.9]} 3. d4 {[%clk 0:03:00.4]} 3... cxd4 {[%clk
0:03:00.8]} 4. Nxd4 {[%clk 0:03:00.8]} 4... g6 {[%clk 0:03:01.4]} 5. c4 {[%clk
0:03:00.1]} 5... Nf6 {[%clk 0:03:01.4]} 6. Nc3 {[%clk 0:02:59.1]} 6... d6 {[%clk
0:03:01.1]} 7. Be2 {[%clk 0:02:57.4]} 7... Nxd4 {[%clk 0:02:58.5]} 8. Qxd4
{[%clk 0:02:57]} 8... Bg7 {[%clk 0:02:59]} 9. O-O {[%clk 0:02:53.2]} 9... O-O
{[%clk 0:02:58.3]} 10. Qd1 {[%clk 0:02:50.6]} 10... a5 {[%clk 0:02:49.9]} 11.
Be3 {[%clk 0:02:49.3]} 11... a4 {[%clk 0:02:49.9]} 12. Nxa4 {[%clk 0:02:35.4]}
12... Nxe4 {[%clk 0:02:39.9]} 13. Nb6 {[%clk 0:02:35.3]} 13... Rb8 {[%clk
0:02:15.3]} 14. Qc2 {[%clk 0:02:11.3]} 14... Nc5 {[%clk 0:02:14.9]} 15. Nxc8
{[%clk 0:02:02.6]} 15... Rxc8 {[%clk 0:02:11.1]} 16. Rad1 {[%clk 0:01:55.5]}
16... Qb6 {[%clk 0:02:03.9]} 17. b3 {[%clk 0:01:41.2]} 17... Qa5 {[%clk
0:01:58.4]} 18. h4 {[%clk 0:01:35.7]} 18... Ra8 {[%clk 0:01:53.2]} 19. Rd2
{[%clk 0:01:33.9]} 19... Bc3 {[%clk 0:01:50]} 20. Rd5 {[%clk 0:01:30.9]} 20...
Bf6 {[%clk 0:01:39.8]} 21. a4 {[%clk 0:01:16.9]} 21... Bxh4 {[%clk 0:01:27.7]}
22. g3 {[%clk 0:01:04.3]} 22... Bf6 {[%clk 0:01:26.7]} 23. Bd2 {[%clk
0:00:52.1]} 23... Qb6 {[%clk 0:01:23.1]} 24. Bd1 {[%clk 0:00:46.5]} 24... e6
{[%clk 0:01:18.2]} 25. a5 {[%clk 0:00:45.8]} 25... Qc6 {[%clk 0:01:13.1]} 26.
Rd3 {[%clk 0:00:38.5]} 26... Nxd3 {[%clk 0:01:12.2]} 27. Qxd3 {[%clk 0:00:38.5]}
27... d5 {[%clk 0:01:08.6]} 28. Bf3 {[%clk 0:00:33]} 28... Qc5 {[%clk
0:00:54.5]} 29. cxd5 {[%clk 0:00:29.4]} 29... exd5 {[%clk 0:00:52.8]} 30. Rc1
{[%clk 0:00:22.8]} 30... Qd6 {[%clk 0:00:45.7]} 31. Qxd5 {[%clk 0:00:19.7]}
31... Qxd5 {[%clk 0:00:44.9]} 32. Bxd5 {[%clk 0:00:19.5]} 32... Rad8 {[%clk
0:00:41.7]} 33. Bxb7 {[%clk 0:00:07.7]} 33... Rxd2 {[%clk 0:00:41.3]} 34. a6
{[%clk 0:00:07.9]} 34... Ra2 {[%clk 0:00:40.7]} 35. Rc6 {[%clk 0:00:04.9]} 35...
Bd4 {[%clk 0:00:39.9]} 36. b4 {[%clk 0:00:04.7]} 36... Bxf2+ {[%clk 0:00:37.4]}
37. Kf1 {[%clk 0:00:04.4]} 37... Re8 {[%clk 0:00:35.7]} 38. b5 {[%clk
0:00:03.1]} 38... Bxg3 {[%clk 0:00:30.5]} 0-1

[Event "Late-Titled-Tuesday-Blitz-June-04-2024"]
[Site "Chess.com"]
[Date "2024.06.04"]
[Round "7"]
[White "chessdjw"]
[Black "Nf3c5"]
[Result "0-1"]
[WhiteElo "2755"]
[BlackElo "2624"]
[TimeControl "180+1"]
[EndTime "15:15:42 PDT"]
[Termination "Nf3c5 won on time"]

1. e4 {[%clk 0:03:00.9]} 1... c5 {[%clk 0:02:58.8]} 2. Nf3 {[%clk 0:02:59.7]}
2... Nc6 {[%clk 0:02:57.2]} 3. Bb5 {[%clk 0:02:59.4]} 3... Na5 {[%clk
0:02:56.2]} 4. d4 {[%clk 0:02:40.2]} 4... a6 {[%clk 0:02:53.7]} 5. Be2 {[%clk
0:02:37.7]} 5... cxd4 {[%clk 0:02:54.3]} 6. Nxd4 {[%clk 0:02:37]} 6... e6 {[%clk
0:02:54.7]} 7. O-O {[%clk 0:02:35.3]} 7... Nf6 {[%clk 0:02:51.2]} 8. e5 {[%clk
0:02:31.7]} 8... Nd5 {[%clk 0:02:51.6]} 9. c4 {[%clk 0:02:29.7]} 9... Ne7 {[%clk
0:02:49.6]} 10. Bf4 {[%clk 0:02:14.5]} 10... Ng6 {[%clk 0:02:39.2]} 11. Bg3
{[%clk 0:02:13.6]} 11... Bc5 {[%clk 0:02:32.4]} 12. Nc3 {[%clk 0:02:09.6]} 12...
f5 {[%clk 0:02:26.6]} 13. exf6 {[%clk 0:01:24.5]} 13... Qxf6 {[%clk 0:02:20.1]}
14. Nf3 {[%clk 0:01:23.7]} 14... Qf5 {[%clk 0:01:41.9]} 15. Bd3 {[%clk
0:01:17.4]} 15... Qh5 {[%clk 0:01:42.4]} 16. Ne4 {[%clk 0:01:10.7]} 16... Nc6
{[%clk 0:01:27.8]} 17. Nxc5 {[%clk 0:01:06.5]} 17... Qxc5 {[%clk 0:01:28.3]} 18.
Re1 {[%clk 0:00:50.9]} 18... Qh5 {[%clk 0:00:59.5]} 19. Bd6 {[%clk 0:00:44.3]}
19... b6 {[%clk 0:00:47.9]} 20. Qb3 {[%clk 0:00:32.9]} 20... Qa5 {[%clk
0:00:31.9]} 21. Bxg6+ {[%clk 0:00:29.2]} 21... hxg6 {[%clk 0:00:31.6]} 22. Ne5
{[%clk 0:00:29.7]} 22... Bb7 {[%clk 0:00:29.1]} 23. Qg3 {[%clk 0:00:19.1]} 23...
O-O-O {[%clk 0:00:23.5]} 24. Nf7 {[%clk 0:00:17.8]} 24... Nd4 {[%clk 0:00:19.3]}
25. Bb8 {[%clk 0:00:15.8]} 25... Qc5 {[%clk 0:00:17.4]} 26. Bd6 {[%clk
0:00:07.5]} 26... Qc6 {[%clk 0:00:13.9]} 27. Be5 {[%clk 0:00:03.8]} 27... Nf5
{[%clk 0:00:11.2]} 28. Qxg6 {[%clk 0:00:04.1]} 28... Nh4 {[%clk 0:00:08.7]} 29.
Qg3 {[%clk 0:00:03.1]} 29... Qxg2+ {[%clk 0:00:05.6]} 30. Qxg2 {[%clk 0:00:03]}
30... Bxg2 {[%clk 0:00:06.3]} 0-1

[Event "Late-Titled-Tuesday-Blitz-June-04-2024"]
[Site "Chess.com"]
[Date "2024.06.04"]
[Round "7"]
[White "gamboajp"]
[Black "merinasian"]
[Result "0-1"]
[WhiteElo "2104"]
[BlackElo "2491"]
[TimeControl "180+1"]
[EndTime "15:15:42 PDT"]
[Termination "merinasian won by checkmate"]

1. c4 {[%clk 0:02:58.5]} 1... Nf6 {[%clk 0:02:58.6]} 2. Nc3 {[%clk 0:02:58]}
2... e6 {[%clk 0:02:58.9]} 3. e4 {[%clk 0:02:58.3]} 3... d6 {[%clk 0:02:58.5]}
4. f4 {[%clk 0:02:56.6]} 4... c5 {[%clk 0:02:56.5]} 5. Nf3 {[%clk 0:02:56.6]}
5... Nc6 {[%clk 0:02:56.5]} 6. Bd3 {[%clk 0:02:56.7]} 6... g6 {[%clk 0:02:52.4]}
7. O-O {[%clk 0:02:49.2]} 7... Bg7 {[%clk 0:02:52.8]} 8. b3 {[%clk 0:02:07.3]}
8... O-O {[%clk 0:02:47.6]} 9. Bb2 {[%clk 0:02:07.4]} 9... Nd4 {[%clk 0:02:46]}
10. Nxd4 {[%clk 0:01:58.9]} 10... cxd4 {[%clk 0:02:45.7]} 11. Ne2 {[%clk
0:01:59.3]} 11... e5 {[%clk 0:02:45]} 12. f5 {[%clk 0:01:58.8]} 12... gxf5
{[%clk 0:02:40.4]} 13. Ng3 {[%clk 0:01:41.6]} 13... f4 {[%clk 0:02:39.5]} 14.
Nh5 {[%clk 0:01:41.3]} 14... Nxh5 {[%clk 0:02:34.5]} 15. Qxh5 {[%clk 0:01:41]}
15... h6 {[%clk 0:02:21.5]} 16. g3 {[%clk 0:01:07]} 16... Qg5 {[%clk 0:02:17.7]}
17. Be2 {[%clk 0:00:56.3]} 17... f5 {[%clk 0:02:08.7]} 18. exf5 {[%clk
0:00:41.7]} 18... Bxf5 {[%clk 0:02:05.8]} 19. Qxg5 {[%clk 0:00:28.6]} 19... hxg5
{[%clk 0:02:06.7]} 20. h4 {[%clk 0:00:28.6]} 20... Bh3 {[%clk 0:01:49]} 21. Rf2
{[%clk 0:00:24.8]} 21... e4 {[%clk 0:01:37.5]} 22. gxf4 {[%clk 0:00:20.3]} 22...
gxf4 {[%clk 0:01:36]} 23. Rh2 {[%clk 0:00:20]} 23... Bd7 {[%clk 0:01:29.3]} 24.
Bh5 {[%clk 0:00:19.3]} 24... f3 {[%clk 0:01:12.7]} 25. Re1 {[%clk 0:00:18.9]}
25... Bf5 {[%clk 0:01:10.1]} 26. Bxf3 {[%clk 0:00:15]} 26... exf3 {[%clk
0:01:08.2]} 27. Re7 {[%clk 0:00:15.6]} 27... Be5 {[%clk 0:01:04.9]} 28. Rf2
{[%clk 0:00:14.2]} 28... Be4 {[%clk 0:01:02.2]} 29. c5 {[%clk 0:00:13.1]} 29...
Rf7 {[%clk 0:00:58.6]} 30. cxd6 {[%clk 0:00:09.6]} 30... Bxd6 {[%clk 0:00:58]}
31. Rxf7 {[%clk 0:00:08.8]} 31... Kxf7 {[%clk 0:00:58.2]} 32. Bxd4 {[%clk
0:00:08.7]} 32... Rg8+ {[%clk 0:00:58.3]} 33. Kf1 {[%clk 0:00:08.3]} 33... Bg3
{[%clk 0:00:56.6]} 34. Bxa7 {[%clk 0:00:06]} 34... Bxf2 {[%clk 0:00:55.3]} 35.
Bxf2 {[%clk 0:00:06.7]} 35... Bd3+ {[%clk 0:00:54.6]} 36. Ke1 {[%clk 0:00:07.1]}
36... Re8+ {[%clk 0:00:53.7]} 37. Be3 {[%clk 0:00:07.4]} 37... Kg6 {[%clk
0:00:47.5]} 38. Kf2 {[%clk 0:00:06.9]} 38... Be4 {[%clk 0:00:46.8]} 39. a4
{[%clk 0:00:06.6]} 39... Kf5 {[%clk 0:00:45.4]} 40. b4 {[%clk 0:00:06.3]} 40...
Kg4 {[%clk 0:00:45.3]} 41. Bg5 {[%clk 0:00:06.3]} 41... Bc6 {[%clk 0:00:43]} 42.
b5 {[%clk 0:00:06.1]} 42... Re2+ {[%clk 0:00:42.8]} 43. Kf1 {[%clk 0:00:06]}
43... Be4 {[%clk 0:00:42]} 44. a5 {[%clk 0:00:05.6]} 44... Bd3 {[%clk
0:00:41.9]} 45. Kg1 {[%clk 0:00:05.9]} 45... f2+ {[%clk 0:00:40.1]} 46. Kh2
{[%clk 0:00:04.7]} 46... f1=Q# {[%clk 0:00:39.6]} 0-1

[Event "Late-Titled-Tuesday-Blitz-June-04-2024"]
[Site "Chess.com"]
[Date "2024.06.04"]
[Round "7"]
[White "Lennis93"]
[Black "Bilan_Danila"]
[Result "1-0"]
[WhiteElo "2740"]
[BlackElo "2564"]
[TimeControl "180+1"]
[EndTime "15:15:44 PDT"]
[Termination "Lennis93 won by checkmate"]

1. b3 {[%clk 0:02:50.6]} 1... d5 {[%clk 0:02:58.9]} 2. Bb2 {[%clk 0:02:51.2]}
2... Nf6 {[%clk 0:02:59.8]} 3. Nf3 {[%clk 0:02:51.2]} 3... c5 {[%clk 0:03:00.4]}
4. e3 {[%clk 0:02:50.1]} 4... Nc6 {[%clk 0:03:01]} 5. Bb5 {[%clk 0:02:50.2]}
5... Qb6 {[%clk 0:03:01.7]} 6. c4 {[%clk 0:02:47.8]} 6... a6 {[%clk 0:02:58.1]}
7. Ba4 {[%clk 0:02:44.9]} 7... e6 {[%clk 0:02:56.1]} 8. Bxf6 {[%clk 0:02:43.7]}
8... gxf6 {[%clk 0:02:56.6]} 9. cxd5 {[%clk 0:02:44.1]} 9... exd5 {[%clk
0:02:57.3]} 10. Nc3 {[%clk 0:02:44.5]} 10... Be6 {[%clk 0:02:56.8]} 11. O-O
{[%clk 0:02:41.5]} 11... Bd6 {[%clk 0:02:52.8]} 12. e4 {[%clk 0:02:41.4]} 12...
d4 {[%clk 0:02:43.6]} 13. Ne2 {[%clk 0:02:20.5]} 13... Qc7 {[%clk 0:02:38]} 14.
b4 {[%clk 0:02:08.6]} 14... b5 {[%clk 0:02:23.5]} 15. bxc5 {[%clk 0:02:08.3]}
15... Bxc5 {[%clk 0:02:21.3]} 16. Rc1 {[%clk 0:02:05.3]} 16... Qd6 {[%clk
0:02:04.1]} 17. Bb3 {[%clk 0:02:04.9]} 17... Ba3 {[%clk 0:01:54.3]} 18. Rxc6
{[%clk 0:01:59]} 18... Qxc6 {[%clk 0:01:54.5]} 19. Nexd4 {[%clk 0:01:59.4]}
19... Qd6 {[%clk 0:01:48.1]} 20. e5 {[%clk 0:01:55.2]} 20... fxe5 {[%clk
0:01:42.6]} 21. Nxe6 {[%clk 0:01:55.4]} 21... fxe6 {[%clk 0:01:42.5]} 22. Ng5
{[%clk 0:01:56.3]} 22... O-O {[%clk 0:01:24.6]} 23. Nxe6 {[%clk 0:01:45.7]}
23... Kh8 {[%clk 0:01:11.5]} 24. Nxf8 {[%clk 0:01:39.5]} 24... Rxf8 {[%clk
0:01:12.4]} 25. Qe2 {[%clk 0:01:39.2]} 25... Bc5 {[%clk 0:01:07.5]} 26. g3
{[%clk 0:01:39]} 26... Qd4 {[%clk 0:01:02.9]} 27. Kg2 {[%clk 0:01:39.2]} 27...
a5 {[%clk 0:00:58.3]} 28. Bc2 {[%clk 0:01:26.5]} 28... h6 {[%clk 0:00:34.7]} 29.
f3 {[%clk 0:01:14.2]} 29... b4 {[%clk 0:00:30.3]} 30. Rd1 {[%clk 0:01:05]} 30...
Kg7 {[%clk 0:00:22.2]} 31. Be4 {[%clk 0:01:02.4]} 31... Rd8 {[%clk 0:00:20.1]}
32. Qa6 {[%clk 0:01:00.7]} 32... Bb6 {[%clk 0:00:16.4]} 33. Qb7+ {[%clk
0:00:58.2]} 33... Rd7 {[%clk 0:00:16.5]} 34. Qb8 {[%clk 0:00:58.3]} 34... Qd6
{[%clk 0:00:15.7]} 35. Qe8 {[%clk 0:00:56.6]} 35... Re7 {[%clk 0:00:11.3]} 36.
Qh5 {[%clk 0:00:56.4]} 36... a4 {[%clk 0:00:08.5]} 37. Qg4+ {[%clk 0:00:51.8]}
37... Kf8 {[%clk 0:00:01.7]} 38. Kh3 {[%clk 0:00:48.3]} 38... Qe6 {[%clk
0:00:01.5]} 39. Bf5 {[%clk 0:00:48.2]} 39... Qd6 {[%clk 0:00:01.9]} 40. Rc1
{[%clk 0:00:48.2]} 40... Rc7 {[%clk 0:00:01.6]} 41. Rb1 {[%clk 0:00:32.4]} 41...
Bc5 {[%clk 0:00:01.4]} 42. Be6 {[%clk 0:00:32.8]} 42... Qe7 {[%clk 0:00:01.7]}
43. Qg8# {[%clk 0:00:32.1]} 1-0